[Event "Snabb-SM för veteraner, 50+ 2019"]
[Site "Schackcentrum, Vegagatan 20, Gothenburg, Sweden"]
[Date "2019.10.06"]
[Round "11.1"]
[White "Svenn, Gosta"]
[Black "Bergre, Joachim"]
[Result "1/2-1/2"]
[TimeControl "15 minutes + 10 seconds per move from move one"]
[WhiteTitle "FM"]
[WhiteFideId "1700553"]
[BlackFideId "1704893"]
[WhiteElo "2272"]
[BlackElo "2035"]

1. d4 {[%clk 00:15:15]} {[%emt 00:00:04]} Nf6 {[%clk 00:15:16]} {[%emt
00:00:04]} 2. c4 {[%clk 00:15:23]} {[%emt 00:00:02]} c5 {[%clk 00:15:23]}
{[%emt 00:00:02]} 3. d5 {[%clk 00:15:31]} {[%emt 00:00:03]} b5 {[%clk
00:15:31]} {[%emt 00:00:02]} 4. Nf3 {[%clk 00:15:27]} {[%emt 00:00:14]} bxc4
{[%clk 00:15:06]} {[%emt 00:00:35]} 5. Nc3 {[%clk 00:15:35]} {[%emt 00:00:02]}
g6 {[%clk 00:14:57]} {[%emt 00:00:18]} 6. e4 {[%clk 00:15:42]} {[%emt
00:00:02]} d6 {[%clk 00:14:59]} {[%emt 00:00:09]} 7. Bxc4 {[%clk 00:15:49]}
{[%emt 00:00:03]} Bg7 {[%clk 00:15:07]} {[%emt 00:00:02]} 8. O-O {[%clk
00:15:46]} {[%emt 00:00:12]} O-O {[%clk 00:15:14]} {[%emt 00:00:02]} 9. Bg5
{[%clk 00:15:32]} {[%emt 00:00:24]} Nbd7 {[%clk 00:14:24]} {[%emt 00:01:01]} 10.
h3 {[%clk 00:15:08]} {[%emt 00:00:34]} Rb8 {[%clk 00:14:13]} {[%emt 00:00:21]}
11. Qd2 {[%clk 00:14:52]} {[%emt 00:00:27]} Qb6 {[%clk 00:13:27]} {[%emt
00:00:56]} 12. Rab1 {[%clk 00:14:00]} {[%emt 00:01:02]} Ba6 {[%clk 00:13:16]}
{[%emt 00:00:20]} 13. Bxa6 {[%clk 00:12:39]} {[%emt 00:01:31]} Qxa6 {[%clk
00:13:24]} {[%emt 00:00:03]} 14. Rfe1 {[%clk 00:12:16]} {[%emt 00:00:33]} Rb4
{[%clk 00:11:18]} {[%emt 00:02:15]} 15. e5 {[%clk 00:06:23]} {[%emt 00:06:03]}
dxe5 {[%clk 00:10:39]} {[%emt 00:00:49]} 16. Nxe5 {[%clk 00:06:31]} {[%emt
00:00:03]} Rd4 {[%clk 00:10:08]} {[%emt 00:00:41]} 17. Qc2 {[%clk 00:06:07]}
{[%emt 00:00:33]} Nxe5 {[%clk 00:07:08]} {[%emt 00:03:10]} 18. Rxe5 {[%clk
00:06:15]} {[%emt 00:00:02]} Rd8 {[%clk 00:07:02]} {[%emt 00:00:16]} 19. Rxe7
{[%clk 00:05:22]} {[%emt 00:01:03]} Nxd5 {[%clk 00:06:59]} {[%emt 00:00:13]} 20.
Nxd5 {[%clk 00:04:53]} {[%emt 00:00:39]} R4xd5 {[%clk 00:07:00]} {[%emt
00:00:10]} 21. Qb3 {[%clk 00:04:15]} {[%emt 00:00:48]} c4 {[%clk 00:05:30]}
{[%emt 00:01:41]} 22. Qe3 {[%clk 00:03:55]} {[%emt 00:00:29]} Rxg5 {[%clk
00:04:30]} {[%emt 00:01:10]} 23. Qxg5 {[%clk 00:03:50]} {[%emt 00:00:15]} Bf6
{[%clk 00:04:34]} {[%emt 00:00:06]} 24. Qe3 {[%clk 00:03:37]} {[%emt 00:00:23]}
Bxe7 {[%clk 00:04:14]} {[%emt 00:00:30]} 25. Qxe7 {[%clk 00:03:44]} {[%emt
00:00:02]} Rd2 {[%clk 00:03:47]} {[%emt 00:00:37]} 26. Qb4 {[%clk 00:03:04]}
{[%emt 00:00:50]} Re2 {[%clk 00:02:08]} {[%emt 00:01:49]} 27. Re1 {[%clk
00:02:16]} {[%emt 00:00:58]} Rxe1+ {[%clk 00:02:08]} {[%emt 00:00:11]} 28. Qxe1
{[%clk 00:02:24]} {[%emt 00:00:01]} Qxa2 {[%clk 00:02:15]} {[%emt 00:00:04]} 29.
Qe8+ {[%clk 00:02:32]} {[%emt 00:00:02]} Kg7 {[%clk 00:02:24]} {[%emt
00:00:01]} 30. Qe5+ {[%clk 00:02:39]} {[%emt 00:00:03]} Kg8 {[%clk 00:02:31]}
{[%emt 00:00:03]} 31. Qe8+ {[%clk 00:02:47]} {[%emt 00:00:01]} 1/2-1/2

[Event "Snabb-SM för veteraner, 50+ 2019"]
[Site "Schackcentrum, Vegagatan 20, Gothenburg, Sweden"]
[Date "2019.10.06"]
[Round "11.2"]
[White "Andreasson, Ingvar"]
[Black "Holst, Conny"]
[Result "1/2-1/2"]
[TimeControl "15 minutes + 10 seconds per move from move one"]
[WhiteFideId "1700294"]
[BlackFideId "1701428"]
[WhiteElo "2413"]
[BlackElo "2166"]

1. b3 {[%clk 00:15:16]} {[%emt 00:00:02]} Nf6 {[%clk 00:15:18]} {[%emt
00:00:03]} 2. Bb2 {[%clk 00:15:25]} g6 {[%clk 00:15:24]} {[%emt 00:00:06]} 3.
g3 {[%clk 00:15:20]} {[%emt 00:00:14]} Bg7 {[%clk 00:15:32]} {[%emt 00:00:02]}
4. Bg2 {[%clk 00:15:28]} {[%emt 00:00:02]} O-O {[%clk 00:15:33]} {[%emt
00:00:10]} 5. e3 {[%clk 00:15:29]} {[%emt 00:00:09]} d5 {[%clk 00:15:16]}
{[%emt 00:00:26]} 6. Nf3 {[%clk 00:13:35]} {[%emt 00:02:04]} Nbd7 {[%clk
00:14:07]} {[%emt 00:01:19]} 7. d4 {[%clk 00:13:15]} {[%emt 00:00:30]} Ne4
{[%clk 00:13:46]} {[%emt 00:00:32]} 8. O-O {[%clk 00:13:13]} {[%emt 00:00:11]}
c5 {[%clk 00:13:23]} {[%emt 00:00:34]} 9. Nbd2 {[%clk 00:13:08]} {[%emt
00:00:13]} Ndf6 {[%clk 00:12:50]} {[%emt 00:00:44]} 10. c4 {[%clk 00:11:51]}
{[%emt 00:01:27]} Bg4 {[%clk 00:11:42]} {[%emt 00:01:17]} 11. h3 {[%clk
00:10:19]} {[%emt 00:01:41]} Bxf3 {[%clk 00:10:18]} {[%emt 00:01:35]} 12. Bxf3
{[%clk 00:09:24]} {[%emt 00:01:05]} cxd4 {[%clk 00:10:23]} {[%emt 00:00:06]} 13.
Bxd4 {[%clk 00:09:20]} {[%emt 00:00:12]} Qd7 {[%clk 00:09:25]} {[%emt
00:01:10]} 14. Nxe4 {[%clk 00:08:08]} {[%emt 00:01:20]} dxe4 {[%clk 00:08:48]}
{[%emt 00:00:48]} 15. Bxf6 {[%clk 00:07:53]} {[%emt 00:00:25]} Qxd1 {[%clk
00:08:25]} {[%emt 00:00:33]} 16. Raxd1 {[%clk 00:07:50]} {[%emt 00:00:12]} Bxf6
{[%clk 00:07:03]} {[%emt 00:01:33]} 17. Bxe4 {[%clk 00:07:51]} {[%emt
00:00:09]} a5 {[%clk 00:05:36]} {[%emt 00:01:38]} 18. Bxb7 {[%clk 00:07:11]}
{[%emt 00:00:49]} Ra7 {[%clk 00:05:31]} {[%emt 00:00:15]} 19. Bc6 {[%clk
00:07:13]} {[%emt 00:00:07]} Be5 {[%clk 00:05:30]} {[%emt 00:00:13]} 20. Rd5
{[%clk 00:06:46]} {[%emt 00:00:35]} Bc3 {[%clk 00:05:06]} {[%emt 00:00:35]} 21.
Rfd1 {[%clk 00:06:51]} {[%emt 00:00:05]} Bb4 {[%clk 00:04:57]} {[%emt
00:00:20]} 22. Kf1 {[%clk 00:06:54]} {[%emt 00:00:05]} h5 {[%clk 00:04:55]}
{[%emt 00:00:13]} 23. Ke2 {[%clk 00:06:44]} {[%emt 00:00:21]} Kg7 {[%clk
00:04:43]} {[%emt 00:00:22]} 24. h4 {[%clk 00:06:10]} {[%emt 00:00:43]} Rc8
{[%clk 00:04:50]} {[%emt 00:00:03]} 25. Bb5 {[%clk 00:06:12]} {[%emt 00:00:07]}
Bd6 {[%clk 00:04:29]} {[%emt 00:00:32]} 26. R1d3 {[%clk 00:04:41]} {[%emt
00:01:40]} Rcc7 {[%clk 00:03:59]} {[%emt 00:00:41]} 27. e4 {[%clk 00:04:32]}
{[%emt 00:00:18]} Bb4 {[%clk 00:03:50]} {[%emt 00:00:20]} 28. e5 {[%clk
00:04:26]} {[%emt 00:00:14]} f6 {[%clk 00:02:57]} {[%emt 00:01:05]} 29. f4
{[%clk 00:04:26]} {[%emt 00:00:10]} fxe5 {[%clk 00:03:05]} {[%emt 00:00:03]} 30.
Rxe5 {[%clk 00:04:32]} {[%emt 00:00:02]} Bd6 {[%clk 00:02:43]} {[%emt
00:00:32]} 31. Re4 {[%clk 00:04:22]} {[%emt 00:00:20]} Ra8 {[%clk 00:02:41]}
{[%emt 00:00:13]} 32. Kf3 {[%clk 00:04:10]} {[%emt 00:00:22]} Kf6 {[%clk
00:02:40]} {[%emt 00:00:10]} 33. Rd5 {[%clk 00:03:53]} {[%emt 00:00:27]} Bb4
{[%clk 00:02:37]} {[%emt 00:00:13]} 34. Rd3 {[%clk 00:03:23]} {[%emt 00:00:40]}
Rb8 {[%clk 00:02:26]} {[%emt 00:00:22]} 35. Re5 {[%clk 00:03:20]} {[%emt
00:00:11]} Rb6 {[%clk 00:02:32]} {[%emt 00:00:06]} 36. Ke4 {[%clk 00:03:22]}
{[%emt 00:00:07]} Rd6 {[%clk 00:02:35]} {[%emt 00:00:08]} 37. Red5 {[%clk
00:03:15]} {[%emt 00:00:15]} Re6+ {[%clk 00:02:44]} {[%emt 00:00:02]} 38. Kf3
{[%clk 00:02:32]} {[%emt 00:00:54]} Re1 {[%clk 00:02:52]} {[%emt 00:00:01]} 39.
Rd8 {[%clk 00:02:39]} {[%emt 00:00:02]} Bc5 {[%clk 00:02:55]} {[%emt 00:00:08]}
40. Rd2 {[%clk 00:02:23]} {[%emt 00:00:24]} Re3+ {[%clk 00:02:56]} {[%emt
00:00:10]} 41. Kg2 {[%clk 00:02:28]} {[%emt 00:00:05]} e5 {[%clk 00:02:52]}
{[%emt 00:00:14]} 42. fxe5+ {[%clk 00:02:14]} {[%emt 00:00:24]} Rxe5 {[%clk
00:03:01]} {[%emt 00:00:02]} 43. R8d3 {[%clk 00:01:58]} {[%emt 00:00:25]} Rce7
{[%clk 00:03:08]} {[%emt 00:00:04]} 44. Rd5 {[%clk 00:01:35]} {[%emt 00:00:33]}
Bb4 {[%clk 00:02:33]} {[%emt 00:00:45]} 45. Rf2+ {[%clk 00:01:33]} {[%emt
00:00:10]} Kg7 {[%clk 00:02:38]} {[%emt 00:00:06]} 46. Rxe5 {[%clk 00:01:27]}
{[%emt 00:00:17]} Rxe5 {[%clk 00:02:47]} 47. Rc2 {[%clk 00:01:04]} {[%emt
00:00:33]} Bd6 {[%clk 00:02:45]} {[%emt 00:00:12]} 48. Rd2 {[%clk 00:01:05]}
{[%emt 00:00:09]} Bb4 {[%clk 00:02:49]} {[%emt 00:00:06]} 49. Rd7+ {[%clk
00:00:50]} {[%emt 00:00:24]} Kf6 {[%clk 00:02:53]} {[%emt 00:00:06]} 50. Bc6
{[%clk 00:00:44]} {[%emt 00:00:17]} Re2+ {[%clk 00:02:29]} {[%emt 00:00:35]} 51.
Kf3 {[%clk 00:00:50]} {[%emt 00:00:03]} Rxa2 {[%clk 00:02:38]} {[%emt
00:00:02]} 52. Ba4 {[%clk 00:00:46]} {[%emt 00:00:14]} Bc5 {[%clk 00:02:42]}
{[%emt 00:00:06]} 53. Rc7 {[%clk 00:00:51]} {[%emt 00:00:05]} Rf2+ {[%clk
00:02:25]} {[%emt 00:00:27]} 54. Ke4 {[%clk 00:01:00]} {[%emt 00:00:02]} Re2+
{[%clk 00:02:34]} 55. Kd5 {[%clk 00:00:55]} {[%emt 00:00:16]} Re5+ {[%clk
00:02:43]} 56. Kc6 {[%clk 00:01:03]} {[%emt 00:00:03]} Bf2 {[%clk 00:02:48]}
{[%emt 00:00:04]} 57. Rb7 {[%clk 00:00:44]} {[%emt 00:00:28]} Bxg3 {[%clk
00:02:48]} {[%emt 00:00:11]} 58. c5 {[%clk 00:00:45]} {[%emt 00:00:09]} Bxh4
{[%clk 00:02:44]} {[%emt 00:00:15]} 59. Ra7 {[%clk 00:00:32]} {[%emt 00:00:23]}
Be1 {[%clk 00:02:48]} {[%emt 00:00:05]} 60. Ra6 {[%clk 00:00:21]} {[%emt
00:00:21]} Bb4 {[%clk 00:02:53]} {[%emt 00:00:05]} 61. Kb7+ {[%clk 00:00:24]}
{[%emt 00:00:07]} Kg5 {[%clk 00:02:20]} {[%emt 00:00:43]} 62. c6 {[%clk
00:00:30]} {[%emt 00:00:04]} Bd6 {[%clk 00:01:14]} {[%emt 00:01:17]} 63. c7
{[%clk 00:00:39]} {[%emt 00:00:01]} Bxc7 64. Kxc7 {[%clk 00:00:48]} Re7+ {[%clk
00:01:25]} {[%emt 00:00:08]} 65. Kd6 {[%clk 00:00:51]} {[%emt 00:00:06]} Re3
{[%clk 00:01:27]} {[%emt 00:00:08]} 66. Rxa5+ {[%clk 00:00:59]} {[%emt
00:00:03]} Kf4 {[%clk 00:01:34]} {[%emt 00:00:03]} 67. b4 {[%clk 00:00:54]}
{[%emt 00:00:14]} h4 {[%clk 00:01:28]} {[%emt 00:00:17]} 68. Bc6 {[%clk
00:00:44]} {[%emt 00:00:20]} g5 {[%clk 00:01:26]} {[%emt 00:00:11]} 69. b5
{[%clk 00:00:45]} {[%emt 00:00:09]} Rb3 {[%clk 00:01:35]} {[%emt 00:00:02]} 70.
Kc7 {[%clk 00:00:49]} {[%emt 00:00:05]} g4 {[%clk 00:01:42]} {[%emt 00:00:03]}
71. Ra4+ {[%clk 00:00:52]} {[%emt 00:00:07]} Kg3 {[%clk 00:01:41]} {[%emt
00:00:12]} 72. b6 {[%clk 00:01:01]} h3 {[%clk 00:00:59]} {[%emt 00:00:51]} 73.
b7 {[%clk 00:01:10]} {[%emt 00:00:01]} Kh2 {[%clk 00:01:08]} {[%emt 00:00:01]}
74. Rxg4 {[%clk 00:01:11]} {[%emt 00:00:09]} Rxb7+ {[%clk 00:01:17]} {[%emt
00:00:01]} 75. Kd6 {[%clk 00:01:09]} {[%emt 00:00:11]} Rb2 {[%clk 00:01:22]}
{[%emt 00:00:05]} 76. Ke5 {[%clk 00:00:51]} {[%emt 00:00:28]} Rc2 {[%clk
00:00:49]} {[%emt 00:00:43]} 77. Be4 {[%clk 00:00:46]} {[%emt 00:00:16]} Ra2
{[%clk 00:00:49]} {[%emt 00:00:09]} 78. Rg7 {[%clk 00:00:44]} {[%emt 00:00:12]}
Ra5+ {[%clk 00:00:46]} {[%emt 00:00:13]} 79. Kf4 {[%emt 00:00:03]} Ra4 80. Rb7
{[%clk 00:00:48]} {[%emt 00:00:12]} Rxe4+ {[%clk 00:00:42]} {[%emt 00:00:24]}
81. Kxe4 {[%clk 00:00:55]} {[%emt 00:00:03]} Kg3 {[%clk 00:00:51]} 82. Rg7+
{[%clk 00:00:59]} {[%emt 00:00:06]} Kf2 {[%clk 00:01:00]} {[%emt 00:00:01]} 83.
Rf7+ {[%clk 00:01:00]} {[%emt 00:00:09]} Kg3 {[%clk 00:01:09]} {[%emt
00:00:02]} 84. Rg7+ {[%clk 00:00:47]} {[%emt 00:00:22]} Kf2 {[%clk 00:01:18]}
{[%emt 00:00:01]} 85. Kf4 {[%clk 00:00:36]} {[%emt 00:00:20]} h2 {[%clk
00:01:26]} {[%emt 00:00:04]} 86. Ra7 {[%clk 00:00:30]} {[%emt 00:00:15]} h1=Q
{[%clk 00:01:29]} {[%emt 00:00:06]} 87. Ra2+ {[%clk 00:00:39]} {[%emt
00:00:04]} Kg1 {[%clk 00:01:38]} 88. Ra1+ {[%clk 00:00:24]} {[%emt 00:00:24]}
Kg2 {[%clk 00:01:47]} {[%emt 00:00:02]} 89. Rxh1 {[%clk 00:00:29]} {[%emt
00:00:04]} Kg3+ {[%emt 00:00:08]} 1/2-1/2

[Event "Snabb-SM för veteraner, 50+ 2019"]
[Site "Schackcentrum, Vegagatan 20, Gothenburg, Sweden"]
[Date "2019.10.06"]
[Round "11.3"]
[White "Angskog, Kent"]
[Black "Svenn, Matti"]
[Result "0-1"]
[TimeControl "15 minutes + 10 seconds per move from move one"]
[WhiteFideId "1703668"]
[BlackFideId "1705091"]
[WhiteElo "2136"]
[BlackElo "2195"]

1. Nf3 {[%clk 00:15:15]} {[%emt 00:00:04]} Nf6 {[%clk 00:15:16]} {[%emt
00:00:04]} 2. c4 {[%clk 00:15:23]} {[%emt 00:00:02]} c5 {[%clk 00:14:57]}
{[%emt 00:00:29]} 3. Nc3 {[%clk 00:15:28]} {[%emt 00:00:05]} Nc6 {[%clk
00:15:06]} {[%emt 00:00:02]} 4. e3 {[%clk 00:15:28]} {[%emt 00:00:09]} e6
{[%clk 00:15:12]} {[%emt 00:00:04]} 5. d4 {[%clk 00:15:34]} {[%emt 00:00:04]}
cxd4 {[%clk 00:14:22]} {[%emt 00:01:00]} 6. exd4 {[%clk 00:15:39]} {[%emt
00:00:04]} d5 {[%clk 00:14:31]} {[%emt 00:00:01]} 7. Bd3 {[%clk 00:14:33]}
{[%emt 00:01:17]} Be7 {[%clk 00:14:39]} {[%emt 00:00:02]} 8. O-O {[%clk
00:14:37]} {[%emt 00:00:06]} O-O {[%clk 00:14:48]} {[%emt 00:00:01]} 9. Bg5
{[%clk 00:14:05]} {[%emt 00:00:41]} dxc4 {[%clk 00:14:12]} {[%emt 00:00:47]} 10.
Bxc4 {[%clk 00:14:12]} {[%emt 00:00:03]} b6 {[%clk 00:14:20]} {[%emt 00:00:02]}
11. Rc1 {[%clk 00:12:29]} {[%emt 00:01:53]} Bb7 {[%clk 00:14:27]} {[%emt
00:00:03]} 12. a3 {[%clk 00:09:57]} {[%emt 00:02:43]} Nd5 {[%clk 00:08:53]}
{[%emt 00:05:44]} 13. Bxe7 {[%clk 00:08:51]} {[%emt 00:01:16]} Ndxe7 {[%clk
00:09:01]} {[%emt 00:00:02]} 14. b4 {[%clk 00:08:00]} {[%emt 00:01:00]} Rc8
{[%clk 00:07:38]} {[%emt 00:01:33]} 15. Bb3 {[%clk 00:07:59]} {[%emt 00:00:11]}
Qd6 {[%clk 00:06:28]} {[%emt 00:01:21]} 16. Qd2 {[%clk 00:04:47]} {[%emt
00:03:21]} Ng6 {[%clk 00:06:20]} {[%emt 00:00:18]} 17. Ne4 {[%clk 00:03:13]}
{[%emt 00:01:45]} Qf4 {[%clk 00:06:10]} {[%emt 00:00:20]} 18. Qxf4 {[%clk
00:01:45]} {[%emt 00:01:37]} Nxf4 {[%clk 00:06:18]} {[%emt 00:00:02]} 19. Ng3
{[%clk 00:01:05]} {[%emt 00:00:51]} Ne7 {[%clk 00:05:44]} {[%emt 00:00:44]} 20.
Rfd1 {[%clk 00:00:48]} {[%emt 00:00:27]} Bxf3 {[%clk 00:03:09]} {[%emt
00:02:45]} 21. gxf3 {[%clk 00:00:56]} {[%emt 00:00:02]} Ned5 {[%clk 00:03:18]}
22. Kf1 {[%clk 00:00:47]} {[%emt 00:00:19]} f5 {[%clk 00:02:05]} {[%emt
00:01:22]} 23. Bxd5 {[%clk 00:00:35]} {[%emt 00:00:23]} Nxd5 {[%clk 00:02:13]}
{[%emt 00:00:02]} 24. Ne2 {[%clk 00:00:41]} {[%emt 00:00:04]} Kf7 {[%clk
00:02:19]} {[%emt 00:00:04]} 25. Rxc8 {[%clk 00:00:25]} {[%emt 00:00:27]} Rxc8
{[%clk 00:02:28]} 26. Rc1 {[%clk 00:00:34]} {[%emt 00:00:02]} Rxc1+ {[%clk
00:02:09]} {[%emt 00:00:28]} 27. Nxc1 {[%clk 00:00:42]} Nf4 {[%clk 00:02:18]}
{[%emt 00:00:01]} 28. Ne2 {[%clk 00:00:36]} {[%emt 00:00:17]} Nxe2 {[%clk
00:01:22]} {[%emt 00:01:06]} 29. Kxe2 {[%clk 00:00:44]} {[%emt 00:00:01]} g5
{[%clk 00:01:32]} 30. Kd3 {[%clk 00:00:45]} {[%emt 00:00:09]} Ke7 {[%clk
00:01:39]} {[%emt 00:00:03]} 31. Kc4 {[%clk 00:00:40]} {[%emt 00:00:15]} Kd6
{[%clk 00:01:49]} 32. a4 {[%clk 00:00:35]} {[%emt 00:00:15]} a6 {[%clk
00:01:51]} {[%emt 00:00:08]} 33. Kd3 {[%clk 00:00:32]} {[%emt 00:00:13]} Kd5
{[%clk 00:01:55]} {[%emt 00:00:06]} 34. Kc3 {[%clk 00:00:39]} {[%emt 00:00:03]}
h5 {[%clk 00:01:38]} {[%emt 00:00:28]} 35. Kd3 {[%clk 00:00:45]} {[%emt
00:00:03]} h4 {[%clk 00:01:46]} {[%emt 00:00:02]} 36. Kc3 {[%clk 00:00:47]}
{[%emt 00:00:07]} g4 {[%clk 00:01:07]} {[%emt 00:00:49]} 37. fxg4 {[%clk
00:00:53]} {[%emt 00:00:04]} fxg4 {[%clk 00:01:17]} 38. Kd3 {[%clk 00:01:02]}
{[%emt 00:00:01]} h3 {[%clk 00:01:09]} {[%emt 00:00:17]} 39. Ke3 {[%clk
00:01:06]} {[%emt 00:00:07]} Kc4 {[%clk 00:01:19]} 40. Ke4 {[%clk 00:01:04]}
{[%emt 00:00:12]} Kxb4 {[%clk 00:01:14]} {[%emt 00:00:15]} 41. Ke5 {[%clk
00:01:11]} {[%emt 00:00:03]} Kc4 {[%clk 00:01:22]} {[%emt 00:00:02]} 42. Kxe6
{[%clk 00:01:16]} {[%emt 00:00:05]} Kxd4 {[%emt 00:00:32]} 43. Ke5+ 0-1

[Event "Snabb-SM för veteraner, 50+ 2019"]
[Site "Schackcentrum, Vegagatan 20, Gothenburg, Sweden"]
[Date "2019.10.06"]
[Round "11.4"]
[White "Eriksson, Kristian"]
[Black "Wesslen, Ulf"]
[Result "0-1"]
[TimeControl "15 minutes + 10 seconds per move from move one"]
[WhiteFideId "1705172"]
[BlackFideId "1705199"]
[WhiteElo "2025"]
[BlackElo "1971"]

1. e4 {[%clk 00:15:18]} {[%emt 00:00:02]} c5 {[%clk 00:15:17]} {[%emt
00:00:03]} 2. Nf3 {[%clk 00:15:25]} {[%emt 00:00:02]} e6 {[%clk 00:15:25]}
{[%emt 00:00:03]} 3. Nc3 {[%clk 00:15:33]} {[%emt 00:00:02]} Nc6 {[%clk
00:14:48]} {[%emt 00:00:47]} 4. d4 {[%clk 00:15:31]} {[%emt 00:00:13]} cxd4
{[%clk 00:14:48]} {[%emt 00:00:10]} 5. Nxd4 {[%clk 00:15:39]} {[%emt 00:00:03]}
Nf6 {[%clk 00:12:43]} {[%emt 00:02:15]} 6. Nxc6 {[%clk 00:15:02]} {[%emt
00:00:47]} bxc6 {[%clk 00:12:19]} {[%emt 00:00:34]} 7. e5 {[%clk 00:14:12]}
{[%emt 00:01:00]} Nd5 {[%clk 00:11:27]} {[%emt 00:01:02]} 8. Nxd5 {[%clk
00:14:16]} {[%emt 00:00:06]} cxd5 {[%clk 00:11:13]} {[%emt 00:00:24]} 9. Bd3
{[%clk 00:13:55]} {[%emt 00:00:31]} Qc7 {[%clk 00:09:46]} {[%emt 00:01:37]} 10.
Bf4 {[%clk 00:13:26]} {[%emt 00:00:39]} Rb8 {[%clk 00:09:23]} {[%emt 00:00:32]}
11. O-O {[%clk 00:09:41]} {[%emt 00:03:55]} Rxb2 {[%clk 00:09:01]} {[%emt
00:00:33]} 12. Qg4 {[%clk 00:08:46]} {[%emt 00:01:03]} g6 {[%clk 00:07:01]}
{[%emt 00:02:12]} 13. h4 {[%clk 00:08:53]} {[%emt 00:00:03]} Bg7 {[%clk
00:06:45]} {[%emt 00:00:26]} 14. Rfe1 {[%clk 00:08:19]} {[%emt 00:00:44]} Rb4
{[%clk 00:06:13]} {[%emt 00:00:42]} 15. h5 {[%clk 00:07:10]} {[%emt 00:01:19]}
a5 {[%clk 00:03:41]} {[%emt 00:02:42]} 16. Re3 {[%clk 00:06:41]} {[%emt
00:00:39]} Bh6 {[%clk 00:03:39]} {[%emt 00:00:13]} 17. c4 {[%clk 00:06:04]}
{[%emt 00:00:47]} g5 {[%clk 00:03:00]} {[%emt 00:00:48]} 18. Bxg5 {[%clk
00:05:54]} {[%emt 00:00:20]} Rg8 {[%clk 00:03:03]} {[%emt 00:00:07]} 19. f4
{[%clk 00:06:02]} {[%emt 00:00:02]} Qc5 {[%clk 00:02:36]} {[%emt 00:00:37]} 20.
Rae1 {[%clk 00:05:45]} {[%emt 00:00:26]} Rg7 {[%clk 00:02:10]} {[%emt
00:00:36]} 21. Qh4 {[%clk 00:05:15]} {[%emt 00:00:41]} Rb2 {[%clk 00:01:52]}
{[%emt 00:00:29]} 22. Kh1 {[%clk 00:04:15]} {[%emt 00:01:09]} Bb7 {[%clk
00:01:45]} {[%emt 00:00:17]} 23. Bxh6 {[%clk 00:04:06]} {[%emt 00:00:19]} Rgxg2
{[%clk 00:01:54]} {[%emt 00:00:02]} 24. Rg3 {[%clk 00:03:47]} {[%emt 00:00:29]}
Qf2 {[%clk 00:01:29]} {[%emt 00:00:34]} 25. Rh3 {[%clk 00:01:43]} {[%emt
00:02:14]} dxc4 {[%clk 00:01:17]} {[%emt 00:00:22]} 26. Qxf2 {[%clk 00:00:32]}
{[%emt 00:01:21]} Rgxf2+ {[%clk 00:01:05]} {[%emt 00:00:22]} 27. Kg1 {[%clk
00:00:30]} {[%emt 00:00:13]} Rg2+ {[%clk 00:01:13]} {[%emt 00:00:02]} 28. Kf1
{[%clk 00:00:32]} {[%emt 00:00:07]} Rbf2# {[%emt 00:00:02]} 0-1

[Event "Snabb-SM för veteraner, 50+ 2019"]
[Site "Schackcentrum, Vegagatan 20, Gothenburg, Sweden"]
[Date "2019.10.06"]
[Round "11.5"]
[White "Sigeman, Johan"]
[Black "Andersson, Johan"]
[Result "0-1"]
[TimeControl "15 minutes + 10 seconds per move from move one"]
[WhiteFideId "1705601"]
[BlackFideId "1703935"]
[WhiteElo "2100"]
[BlackElo "2152"]

1. c4 {[%clk 00:15:17]} {[%emt 00:00:02]} d6 {[%clk 00:15:17]} {[%emt
00:00:04]} 2. d4 {[%clk 00:15:14]} {[%emt 00:00:13]} e5 {[%clk 00:15:24]}
{[%emt 00:00:03]} 3. Nf3 {[%clk 00:15:14]} {[%emt 00:00:10]} e4 {[%clk
00:15:27]} {[%emt 00:00:06]} 4. Ng5 {[%clk 00:15:00]} {[%emt 00:00:25]} f5
{[%clk 00:15:34]} {[%emt 00:00:03]} 5. f3 {[%clk 00:15:02]} {[%emt 00:00:08]}
h6 {[%clk 00:14:58]} {[%emt 00:00:47]} 6. Nh3 {[%clk 00:15:09]} {[%emt
00:00:02]} g5 {[%clk 00:14:07]} {[%emt 00:01:01]} 7. fxe4 {[%clk 00:14:12]}
{[%emt 00:01:08]} fxe4 {[%clk 00:14:14]} {[%emt 00:00:02]} 8. Nf2 {[%clk
00:14:17]} {[%emt 00:00:04]} Nf6 {[%clk 00:13:59]} {[%emt 00:00:25]} 9. Nc3
{[%clk 00:14:18]} {[%emt 00:00:10]} Qe7 {[%clk 00:13:04]} {[%emt 00:01:05]} 10.
Be3 {[%clk 00:13:27]} {[%emt 00:01:01]} Bg7 {[%clk 00:11:12]} {[%emt 00:02:02]}
11. Qc2 {[%clk 00:13:24]} {[%emt 00:00:13]} Bf5 {[%clk 00:11:10]} {[%emt
00:00:12]} 12. O-O-O {[%clk 00:13:05]} {[%emt 00:00:29]} Nc6 {[%clk 00:10:00]}
{[%emt 00:01:21]} 13. g3 {[%clk 00:11:56]} {[%emt 00:01:20]} O-O {[%clk
00:07:42]} {[%emt 00:02:27]} 14. Bg2 {[%clk 00:11:37]} {[%emt 00:00:29]} Rae8
{[%clk 00:07:17]} {[%emt 00:00:36]} 15. h3 {[%clk 00:10:30]} {[%emt 00:01:16]}
Bg6 {[%clk 00:04:41]} {[%emt 00:02:45]} 16. g4 {[%clk 00:09:48]} {[%emt
00:00:53]} Nb4 {[%clk 00:03:53]} {[%emt 00:00:58]} 17. Qb3 {[%clk 00:07:13]}
{[%emt 00:02:45]} c5 {[%clk 00:03:47]} {[%emt 00:00:16]} 18. Rhf1 {[%clk
00:05:37]} {[%emt 00:01:47]} Nc6 {[%clk 00:03:30]} {[%emt 00:00:27]} 19. dxc5
{[%clk 00:05:17]} {[%emt 00:00:30]} dxc5 {[%clk 00:03:37]} {[%emt 00:00:02]} 20.
Qb5 {[%clk 00:04:09]} {[%emt 00:01:18]} Nd4 {[%clk 00:03:03]} {[%emt 00:00:44]}
21. Bxd4 {[%clk 00:02:44]} {[%emt 00:01:35]} cxd4 {[%emt 00:00:06]} 22. Rxd4
{[%clk 00:02:49]} {[%emt 00:00:01]} Kh8 {[%clk 00:01:28]} {[%emt 00:01:52]} 23.
e3 {[%clk 00:02:05]} {[%emt 00:00:55]} a6 {[%clk 00:01:19]} {[%emt 00:00:20]}
24. Qb6 {[%clk 00:01:55]} {[%emt 00:00:19]} Kh7 {[%clk 00:01:07]} {[%emt
00:00:22]} 25. Rd6 {[%clk 00:01:51]} {[%emt 00:00:14]} Rc8 {[%clk 00:01:03]}
{[%emt 00:00:13]} 26. Nfxe4 {[%clk 00:01:16]} {[%emt 00:00:46]} Bxe4 {[%clk
00:01:01]} {[%emt 00:00:12]} 27. Rfxf6 {[%clk 00:01:11]} {[%emt 00:00:15]} Bxg2
{[%clk 00:00:54]} {[%emt 00:00:17]} 28. Rxh6+ {[%clk 00:01:03]} {[%emt
00:00:20]} Kg8 {[%clk 00:01:02]} 29. Rhe6 {[%clk 00:00:24]} {[%emt 00:00:49]}
Qc7 {[%clk 00:01:05]} {[%emt 00:00:07]} 30. Qb3 {[%clk 00:00:16]} {[%emt
00:00:18]} Qxc4 {[%clk 00:01:10]} {[%emt 00:00:05]} 31. Re7 {[%clk 00:00:20]}
{[%emt 00:00:06]} Qxb3 {[%clk 00:01:14]} {[%emt 00:00:06]} 32. axb3 {[%clk
00:00:29]} {[%emt 00:00:02]} Rf7 {[%clk 00:01:18]} {[%emt 00:00:05]} 0-1